[Event "FIDE Grand Swiss 2023"]
[Site "Villa Marina, Douglas, Isle of Man, Isle Of Man"]
[Date "2023.11.02"]
[Round "8.45"]
[White "Sadhwani, Raunak"]
[Black "Royal, Shreyas"]
[Result "1/2-1/2"]
[TimeControl "40/90 + 30 + 30s/move"]
[WhiteFideId "35093487"]
[BlackFideId "448869"]
[WhiteElo "2641"]
[BlackElo "2407"]

1. Nf3 {[%clk 01:40:58]} {[%emt 00:00:01]} d5 {[%clk 01:40:53]} {[%emt
00:00:07]} 2. c4 {[%clk 01:41:25]} {[%emt 00:00:04]} dxc4 {[%clk 01:41:04]}
{[%emt 00:00:19]} 3. Nc3 {[%clk 01:41:51]} {[%emt 00:00:04]} c5 {[%clk
01:37:55]} {[%emt 00:03:39]} 4. e4 {[%clk 01:41:55]} {[%emt 00:00:26]} Nc6
{[%clk 01:34:51]} {[%emt 00:03:33]} 5. Bxc4 {[%clk 01:42:21]} {[%emt 00:00:04]}
e6 {[%clk 01:31:44]} {[%emt 00:03:36]} 6. Bb5 {[%clk 01:40:22]} {[%emt
00:02:30]} Bd7 {[%clk 01:30:27]} {[%emt 00:01:47]} 7. O-O {[%clk 01:40:39]}
{[%emt 00:00:13]} Nge7 {[%clk 01:29:15]} {[%emt 00:01:43]} 8. d4 {[%clk
01:41:03]} {[%emt 00:00:06]} cxd4 {[%clk 01:26:18]} {[%emt 00:03:27]} 9. Nxd4
{[%clk 01:41:31]} {[%emt 00:00:02]} Nxd4 {[%clk 01:15:30]} {[%emt 00:11:18]} 10.
Qxd4 {[%clk 01:41:52]} {[%emt 00:00:08]} Bxb5 {[%clk 01:15:52]} {[%emt
00:00:08]} 11. Nxb5 {[%clk 01:42:18]} {[%emt 00:00:05]} Nc6 {[%clk 01:09:18]}
{[%emt 00:07:04]} 12. Qa4 {[%clk 01:42:43]} {[%emt 00:00:05]} a6 {[%clk
00:54:29]} {[%emt 00:15:19]} 13. Rd1 {[%clk 01:43:11]} {[%emt 00:00:01]} Qb6
{[%clk 00:45:53]} {[%emt 00:09:06]} 14. Nd4 {[%clk 01:43:31]} {[%emt 00:00:10]}
Bc5 {[%clk 00:45:40]} {[%emt 00:00:43]} 15. Be3 {[%clk 01:43:57]} {[%emt
00:00:05]} O-O {[%clk 00:44:59]} {[%emt 00:01:10]} 16. Nxc6 {[%clk 01:44:13]}
{[%emt 00:00:14]} bxc6 {[%clk 00:45:24]} {[%emt 00:00:06]} 17. Bxc5 {[%clk
01:44:39]} {[%emt 00:00:04]} Qxc5 {[%clk 00:45:47]} {[%emt 00:00:07]} 18. Rac1
{[%clk 01:45:06]} {[%emt 00:00:02]} Qb5 {[%clk 00:46:09]} {[%emt 00:00:08]} 19.
Qd4 {[%clk 01:45:31]} {[%emt 00:00:05]} h6 {[%clk 00:44:46]} {[%emt 00:01:54]}
20. b3 {[%clk 01:37:01]} {[%emt 00:09:00]} Rac8 {[%clk 00:39:26]} {[%emt
00:05:50]} 21. Rc4 {[%clk 01:35:08]} {[%emt 00:02:22]} Qg5 {[%clk 00:35:23]}
{[%emt 00:04:33]} 22. Rdc1 {[%clk 01:34:03]} {[%emt 00:01:35]} Rfd8 {[%clk
00:35:27]} {[%emt 00:00:26]} 23. Qb6 {[%clk 01:34:22]} {[%emt 00:00:10]} Qd2
{[%clk 00:34:03]} {[%emt 00:01:55]} 24. h3 {[%clk 01:33:15]} {[%emt 00:01:37]}
Qxa2 {[%clk 00:33:32]} {[%emt 00:01:02]} 25. Rxc6 {[%clk 01:33:41]} {[%emt
00:00:04]} Rb8 {[%clk 00:33:50]} {[%emt 00:00:11]} 26. Qxa6 {[%clk 01:34:06]}
{[%emt 00:00:05]} Qxa6 {[%clk 00:33:37]} {[%emt 00:00:44]} 27. Rxa6 {[%clk
01:34:34]} {[%emt 00:00:02]} Rxb3 {[%clk 00:33:57]} {[%emt 00:00:10]} 28. Ra2
{[%clk 01:34:56]} {[%emt 00:00:07]} Rbd3 {[%clk 00:33:57]} {[%emt 00:00:30]} 29.
f3 {[%emt 00:00:13]} Rd1+ {[%clk 00:34:18]} 30. Rxd1 {[%clk 01:35:50]} {[%emt
00:00:02]} Rxd1+ {[%clk 00:34:40]} {[%emt 00:00:08]} 1/2-1/2

[Event "FIDE Grand Swiss 2023"]
[Site "Villa Marina, Douglas, Isle of Man, Isle Of Man"]
[Date "2023.11.02"]
[Round "8.46"]
[White "Adhiban, B."]
[Black "Donchenko, Alexander"]
[Result "1/2-1/2"]
[TimeControl "40/90 + 30 + 30s/move"]
[WhiteFideId "5018471"]
[BlackFideId "24603295"]
[WhiteElo "2551"]
[BlackElo "2676"]

1. e4 {[%clk 01:40:45]} {[%emt 00:00:15]} c6 {[%clk 01:40:52]} {[%emt
00:00:08]} 2. Nf3 {[%emt 00:00:11]} d5 {[%clk 01:41:15]} 3. d3 {[%clk
01:41:37]} {[%emt 00:00:04]} dxe4 {[%clk 01:40:38]} {[%emt 00:01:07]} 4. dxe4
{[%clk 01:42:03]} {[%emt 00:00:04]} Qxd1+ {[%clk 01:41:01]} {[%emt 00:00:07]} 5.
Kxd1 {[%clk 01:42:31]} {[%emt 00:00:02]} Nd7 {[%clk 01:41:01]} {[%emt
00:00:30]} 6. Nfd2 {[%clk 01:32:29]} {[%emt 00:10:31]} e5 {[%clk 01:29:55]}
{[%emt 00:11:36]} 7. f3 {[%clk 01:30:57]} {[%emt 00:02:02]} Ne7 {[%clk
01:16:00]} {[%emt 00:14:25]} 8. Nb3 {[%clk 01:26:38]} {[%emt 00:04:50]} f5
{[%clk 01:07:47]} {[%emt 00:08:43]} 9. N1d2 {[%clk 01:19:13]} {[%emt 00:07:55]}
Nf6 {[%clk 01:04:40]} {[%emt 00:03:37]} 10. Bd3 {[%clk 01:16:53]} {[%emt
00:02:49]} fxe4 {[%clk 00:55:39]} {[%emt 00:09:31]} 11. Nxe4 {[%clk 01:17:08]}
{[%emt 00:00:15]} Nxe4 {[%clk 00:56:02]} {[%emt 00:00:07]} 12. Bxe4 {[%clk
01:16:56]} {[%emt 00:00:43]} Bf5 {[%clk 00:56:18]} {[%emt 00:00:13]} 13. Nc5
{[%clk 01:07:32]} {[%emt 00:09:56]} O-O-O+ {[%clk 00:52:58]} {[%emt 00:03:49]}
14. Ke2 {[%clk 01:07:49]} {[%emt 00:00:12]} b6 {[%clk 00:49:56]} {[%emt
00:03:33]} 15. Bg5 {[%clk 01:06:22]} {[%emt 00:01:56]} bxc5 {[%clk 00:45:46]}
{[%emt 00:04:40]} 16. Bxe7 {[%clk 01:06:36]} {[%emt 00:00:17]} Bxe7 {[%clk
00:46:12]} {[%emt 00:00:03]} 17. Bxf5+ {[%clk 01:07:01]} {[%emt 00:00:06]} Kc7
{[%clk 00:46:35]} {[%emt 00:00:06]} 18. Rad1 {[%clk 01:04:24]} {[%emt
00:03:07]} h6 {[%clk 00:44:31]} {[%emt 00:02:35]} 19. Rxd8 {[%clk 00:54:22]}
{[%emt 00:10:32]} Rxd8 {[%clk 00:44:55]} {[%emt 00:00:06]} 20. c3 {[%clk
00:54:04]} {[%emt 00:00:48]} Bg5 {[%clk 00:44:25]} {[%emt 00:01:00]} 21. Rd1
{[%clk 00:54:23]} {[%emt 00:00:11]} Rxd1 {[%clk 00:44:16]} {[%emt 00:00:39]} 22.
Kxd1 {[%clk 00:54:51]} {[%emt 00:00:02]} Bf4 {[%clk 00:44:25]} {[%emt
00:00:20]} 23. g3 {[%clk 00:53:55]} {[%emt 00:01:27]} Be3 {[%clk 00:44:43]}
{[%emt 00:00:11]} 24. Ke2 {[%clk 00:54:18]} {[%emt 00:00:07]} Bc1 {[%clk
00:44:49]} {[%emt 00:00:24]} 25. b3 {[%clk 00:54:44]} {[%emt 00:00:06]} Kd6
{[%clk 00:44:47]} {[%emt 00:00:31]} 26. c4 {[%clk 00:54:27]} {[%emt 00:00:47]}
Bb2 {[%clk 00:44:54]} {[%emt 00:00:22]} 27. h4 {[%clk 00:52:02]} {[%emt
00:02:55]} Bc3 {[%clk 00:38:08]} {[%emt 00:07:16]} 28. h5 {[%clk 00:49:55]}
{[%emt 00:02:38]} Ba5 {[%clk 00:38:21]} {[%emt 00:00:16]} 29. Bg6 {[%clk
00:47:03]} {[%emt 00:03:22]} Ke7 {[%clk 00:38:34]} {[%emt 00:00:17]} 30. Be4
{[%clk 00:45:13]} {[%emt 00:02:20]} Kd6 {[%clk 00:38:58]} {[%emt 00:00:06]} 31.
Bg6 {[%clk 00:45:17]} {[%emt 00:00:26]} Ke7 {[%clk 00:39:22]} {[%emt 00:00:07]}
32. Kd3 {[%clk 00:45:20]} {[%emt 00:00:26]} Be1 {[%clk 00:39:36]} {[%emt
00:00:16]} 33. g4 {[%clk 00:45:47]} {[%emt 00:00:04]} Bh4 {[%clk 00:39:34]}
{[%emt 00:00:32]} 34. Ke4 {[%clk 00:46:05]} {[%emt 00:00:11]} Bf6 {[%clk
00:39:57]} {[%emt 00:00:08]} 35. Kf5 {[%clk 00:33:28]} {[%emt 00:13:06]} Kd7
{[%clk 00:40:15]} {[%emt 00:00:11]} 36. Bf7 {[%clk 00:32:56]} {[%emt 00:01:03]}
Ke7 {[%clk 00:39:34]} {[%emt 00:01:10]} 37. Be6 {[%clk 00:32:43]} {[%emt
00:00:43]} Kd6 {[%clk 00:38:02]} {[%emt 00:02:02]} 38. Bf7 {[%clk 00:30:15]}
{[%emt 00:02:59]} Ke7 {[%clk 00:38:17]} {[%emt 00:00:15]} 39. Kg6 {[%clk
00:30:38]} {[%emt 00:00:07]} a5 {[%clk 00:36:06]} {[%emt 00:02:41]} 40. Bg8
{[%clk 00:28:54]} {[%emt 00:02:13]} e4 {[%clk 00:36:30]} {[%emt 00:00:06]} 41.
fxe4 {[%clk 00:29:18]} {[%emt 00:00:07]} Bc3 {[%clk 00:36:55]} {[%emt
00:00:04]} 42. Kf5 {[%clk 00:26:09]} {[%emt 00:03:39]} Kd6 {[%clk 00:37:23]}
{[%emt 00:00:03]} 43. Bf7 {[%clk 00:24:50]} {[%emt 00:01:48]} Ke7 {[%clk
00:37:49]} {[%emt 00:00:05]} 44. Bg8 {[%clk 00:05:23]} {[%emt 00:19:57]} Kd6
{[%clk 00:38:15]} {[%emt 00:00:04]} 45. Bh7 {[%clk 00:04:27]} {[%emt 00:01:25]}
Bb2 {[%clk 00:38:39]} {[%emt 00:00:07]} 46. Bg6 {[%clk 00:04:32]} {[%emt
00:00:25]} Bc3 {[%clk 00:39:07]} {[%emt 00:00:02]} 47. Be8 {[%clk 00:01:40]}
{[%emt 00:03:22]} Bb2 {[%clk 00:39:32]} {[%emt 00:00:04]} 48. g5 {[%clk
00:36:56]} {[%emt 00:15:14]} Bc3 {[%clk 01:25:53]} {[%emt 00:04:09]} 49. Bf7
{[%clk 00:24:33]} {[%emt 00:12:54]} Bb2 {[%clk 01:26:02]} {[%emt 00:00:21]} 50.
Be8 {[%clk 00:24:18]} {[%emt 00:00:45]} Bc3 {[%clk 01:26:26]} {[%emt 00:00:06]}
51. Kg6 {[%clk 00:24:36]} {[%emt 00:00:12]} Bd2 {[%clk 01:26:23]} {[%emt
00:00:32]} 52. gxh6 {[%clk 00:23:50]} {[%emt 00:01:16]} gxh6 {[%clk 01:26:49]}
{[%emt 00:00:04]} 53. Kg7 {[%clk 00:24:05]} {[%emt 00:00:15]} Bc1 {[%clk
01:27:04]} {[%emt 00:00:15]} 54. Kf8 {[%clk 00:24:22]} {[%emt 00:00:14]} Bd2
{[%clk 01:26:51]} {[%emt 00:00:43]} 55. Bg6 {[%clk 00:17:56]} {[%emt 00:06:55]}
Bc3 {[%clk 01:27:06]} {[%emt 00:00:15]} 56. Kf7 {[%clk 00:17:13]} {[%emt
00:01:13]} Bb2 {[%clk 01:27:13]} {[%emt 00:00:22]} 57. Bf5 {[%clk 00:17:26]}
{[%emt 00:00:18]} Bc3 {[%clk 01:27:36]} {[%emt 00:00:07]} 58. Bh3 {[%clk
00:16:46]} {[%emt 00:01:10]} Bb2 {[%clk 01:27:45]} {[%emt 00:00:21]} 59. Bg4
{[%clk 00:12:51]} {[%emt 00:04:25]} Bc3 {[%clk 01:27:35]} {[%emt 00:00:41]} 60.
Kg6 {[%clk 00:12:44]} {[%emt 00:00:37]} Bd2 {[%clk 01:28:00]} {[%emt 00:00:04]}
61. Bf3 {[%clk 00:12:46]} {[%emt 00:00:28]} Bc1 {[%clk 01:28:22]} {[%emt
00:00:08]} 62. Kg7 {[%clk 00:10:04]} {[%emt 00:03:12]} Bd2 {[%clk 01:28:35]}
{[%emt 00:00:18]} 63. Kf6 {[%clk 00:08:43]} {[%emt 00:01:51]} Bc3 {[%clk
01:28:59]} {[%emt 00:00:06]} 64. Kf5 {[%clk 00:08:50]} {[%emt 00:00:23]} Bb2
{[%clk 01:29:25]} {[%emt 00:00:03]} 65. Bg2 {[%clk 00:07:37]} {[%emt 00:01:43]}
Bc3 {[%clk 01:29:35]} {[%emt 00:00:20]} 66. Bh1 {[%clk 00:06:14]} {[%emt
00:01:54]} Bb2 {[%clk 01:29:53]} {[%emt 00:00:12]} 67. Bf3 {[%clk 00:06:40]}
{[%emt 00:00:03]} Bc3 {[%clk 01:30:18]} {[%emt 00:00:05]} 68. Kg6 {[%clk
00:03:37]} {[%emt 00:03:33]} Bd2 {[%clk 01:30:32]} {[%emt 00:00:16]} 69. a3
{[%clk 00:04:04]} {[%emt 00:00:05]} Ke5 {[%clk 01:28:57]} {[%emt 00:02:04]} 70.
Kf7 {[%clk 00:04:08]} {[%emt 00:00:25]} Bc1 {[%clk 01:29:11]} {[%emt 00:00:16]}
71. a4 {[%clk 00:04:05]} {[%emt 00:00:34]} Kd6 {[%clk 01:29:20]} {[%emt
00:00:20]} 72. Be2 {[%clk 00:02:08]} {[%emt 00:02:27]} Bd2 {[%clk 01:29:23]}
{[%emt 00:00:27]} 73. Bg4 {[%clk 00:02:32]} {[%emt 00:00:06]} Bc1 {[%clk
01:29:48]} {[%emt 00:00:05]} 74. Bd1 {[%clk 00:02:43]} {[%emt 00:00:20]} Bb2
{[%clk 01:30:02]} {[%emt 00:00:15]} 75. Bc2 {[%clk 00:03:00]} {[%emt 00:00:13]}
Bc3 {[%clk 01:30:25]} {[%emt 00:00:07]} 76. Bb1 {[%clk 00:03:27]} {[%emt
00:00:04]} Bb2 {[%clk 01:30:34]} {[%emt 00:00:20]} 77. Kf8 {[%clk 00:03:20]}
{[%emt 00:00:37]} Bc3 {[%clk 01:30:52]} {[%emt 00:00:12]} 78. Ke8 {[%clk
00:03:46]} {[%emt 00:00:05]} Bf6 {[%clk 01:30:14]} {[%emt 00:01:07]} 79. Ba2
{[%clk 00:03:46]} {[%emt 00:00:31]} Bg5 {[%clk 01:30:22]} {[%emt 00:00:22]} 80.
Kf8 {[%clk 00:04:02]} {[%emt 00:00:14]} Bf6 {[%clk 01:30:43]} {[%emt 00:00:08]}
81. Kf7 {[%clk 00:03:17]} {[%emt 00:01:12]} Bc3 {[%clk 01:29:53]} {[%emt
00:01:23]} 82. Kg6 {[%clk 00:03:41]} {[%emt 00:00:06]} Bd2 {[%clk 01:30:18]}
{[%emt 00:00:05]} 83. Kf5 {[%clk 00:04:06]} {[%emt 00:00:05]} Bc3 {[%clk
01:30:40]} {[%emt 00:00:09]} 84. Kg6 {[%clk 00:02:59]} {[%emt 00:01:37]} Bd2
{[%clk 01:31:05]} {[%emt 00:00:04]} 85. Kf5 {[%clk 00:03:27]} {[%emt 00:00:02]}
Bc3 {[%clk 01:31:30]} {[%emt 00:00:06]} 86. Kg6 {[%clk 00:03:55]} {[%emt
00:00:02]} Bd2 {[%clk 01:31:55]} {[%emt 00:00:05]} 1/2-1/2

[Event "FIDE Grand Swiss 2023"]
[Site "Villa Marina, Douglas, Isle of Man, Isle Of Man"]
[Date "2023.11.02"]
[Round "8.47"]
[White "Fawzy, Adham"]
[Black "Shevchenko, Kirill"]
[Result "0-1"]
[TimeControl "40/90 + 30 + 30s/move"]
[WhiteFideId "10613129"]
[BlackFideId "14129574"]
[WhiteElo "2535"]
[BlackElo "2671"]

1. e4 {[%clk 01:40:53]} {[%emt 00:00:06]} c5 {[%clk 01:40:54]} {[%emt
00:00:07]} 2. Nf3 {[%clk 01:41:09]} {[%emt 00:00:13]} e6 {[%clk 01:41:08]}
{[%emt 00:00:17]} 3. d4 {[%clk 01:40:37]} {[%emt 00:01:02]} cxd4 {[%clk
01:41:32]} {[%emt 00:00:06]} 4. Nxd4 {[%clk 01:41:02]} {[%emt 00:00:05]} Nc6
{[%clk 01:41:46]} {[%emt 00:00:16]} 5. c4 {[%clk 01:35:59]} {[%emt 00:05:33]}
Qb6 {[%clk 01:39:03]} {[%emt 00:03:12]} 6. Nb3 {[%clk 01:31:14]} {[%emt
00:05:16]} Bb4+ {[%clk 01:35:21]} {[%emt 00:04:12]} 7. N1d2 {[%clk 01:21:01]}
{[%emt 00:10:42]} Nf6 {[%clk 01:28:07]} {[%emt 00:07:44]} 8. Bd3 {[%clk
01:12:50]} {[%emt 00:08:39]} Ne5 {[%clk 01:18:22]} {[%emt 00:10:17]} 9. Be2
{[%clk 01:13:06]} {[%emt 00:00:14]} O-O {[%clk 00:44:54]} {[%emt 00:33:58]} 10.
O-O {[%clk 01:08:18]} {[%emt 00:05:17]} d6 {[%clk 00:33:12]} {[%emt 00:12:13]}
11. Nf3 {[%clk 01:04:52]} {[%emt 00:03:55]} Nxe4 {[%clk 00:29:30]} {[%emt
00:04:13]} 12. Be3 {[%clk 01:00:04]} {[%emt 00:05:17]} Qc7 {[%clk 00:26:45]}
{[%emt 00:03:15]} 13. Nxe5 {[%clk 00:56:31]} {[%emt 00:04:04]} dxe5 {[%clk
00:27:13]} {[%emt 00:00:02]} 14. c5 {[%clk 00:56:38]} {[%emt 00:00:22]} b6
{[%clk 00:22:29]} {[%emt 00:05:15]} 15. Rc1 {[%clk 00:39:53]} {[%emt 00:17:15]}
Bxc5 {[%clk 00:19:31]} {[%emt 00:03:28]} 16. Nxc5 {[%clk 00:37:09]} {[%emt
00:03:13]} bxc5 {[%clk 00:19:49]} {[%emt 00:00:12]} 17. Qa4 {[%clk 00:34:07]}
{[%emt 00:03:32]} Bb7 {[%clk 00:15:56]} {[%emt 00:04:23]} 18. f3 {[%clk
00:34:18]} {[%emt 00:00:20]} Nf6 {[%clk 00:11:38]} {[%emt 00:04:48]} 19. Rxc5
{[%clk 00:34:15]} {[%emt 00:00:32]} Qb8 {[%clk 00:08:59]} {[%emt 00:03:08]} 20.
Rb5 {[%clk 00:24:04]} {[%emt 00:10:42]} a6 {[%clk 00:05:21]} {[%emt 00:04:09]}
21. Rb3 {[%clk 00:18:58]} {[%emt 00:05:36]} Nd5 {[%clk 00:05:47]} {[%emt
00:00:04]} 22. Qd7 {[%clk 00:11:21]} {[%emt 00:08:08]} Nxe3 {[%clk 00:05:36]}
{[%emt 00:00:42]} 23. Rc1 {[%clk 00:10:30]} {[%emt 00:01:20]} e4 {[%clk
00:03:03]} {[%emt 00:03:03]} 24. Qxb7 {[%clk 00:07:26]} {[%emt 00:03:34]} Qxb7
{[%clk 00:02:40]} {[%emt 00:00:53]} 25. Rxb7 {[%clk 00:07:55]} {[%emt
00:00:01]} exf3 {[%clk 00:03:09]} {[%emt 00:00:01]} 26. Bxf3 {[%clk 00:08:24]}
{[%emt 00:00:01]} Nf5 {[%clk 00:02:12]} {[%emt 00:01:27]} 27. Rb6 {[%clk
00:06:18]} {[%emt 00:02:35]} Rab8 {[%clk 00:01:05]} {[%emt 00:01:37]} 28. Rcc6
{[%clk 00:04:54]} {[%emt 00:01:55]} a5 {[%clk 00:01:34]} 29. b3 {[%clk
00:03:52]} {[%emt 00:01:31]} g6 {[%clk 00:01:12]} {[%emt 00:00:53]} 30. Ra6
{[%clk 00:02:55]} {[%emt 00:01:27]} Rb5 {[%clk 00:00:54]} {[%emt 00:00:48]} 31.
Rc7 {[%clk 00:03:24]} {[%emt 00:00:02]} Nd4 {[%clk 00:00:35]} {[%emt 00:00:49]}
32. Rca7 {[%clk 00:02:11]} {[%emt 00:01:42]} Nxf3+ {[%clk 00:00:34]} {[%emt
00:00:31]} 33. gxf3 {[%clk 00:02:39]} {[%emt 00:00:02]} Rg5+ {[%clk 00:01:03]}
{[%emt 00:00:01]} 34. Kf2 {[%clk 00:02:03]} {[%emt 00:01:06]} Rc8 {[%clk
00:01:22]} {[%emt 00:00:09]} 35. Ra8 {[%clk 00:00:44]} {[%emt 00:01:50]} Rxa8
{[%clk 00:01:43]} {[%emt 00:00:10]} 36. Rxa8+ {[%clk 00:01:13]} {[%emt
00:00:01]} Kg7 {[%clk 00:02:12]} 37. Ke3 {[%clk 00:00:34]} {[%emt 00:01:10]}
Re5+ {[%clk 00:01:36]} {[%emt 00:01:06]} 38. Kd3 {[%clk 00:00:31]} {[%emt
00:00:33]} Rh5 {[%clk 00:01:33]} {[%emt 00:00:33]} 39. a4 {[%clk 00:00:40]}
{[%emt 00:00:22]} Kf6 {[%clk 00:00:46]} {[%emt 00:01:16]} 40. h4 {[%clk
00:00:31]} {[%emt 00:00:38]} Rf5 {[%clk 00:00:34]} {[%emt 00:00:42]} 41. Ke3
{[%clk 00:45:29]} {[%emt 00:05:33]} Rh5 {[%clk 00:50:24]} {[%emt 00:00:40]} 42.
Kd3 {[%clk 00:44:36]} {[%emt 00:01:23]} h6 {[%clk 00:34:38]} {[%emt 00:16:16]}
43. Ra7 {[%emt 00:14:16]} Rf5 {[%clk 00:22:02]} 44. Ke3 {[%clk 00:40:14]}
{[%emt 00:04:12]} g5 {[%clk 00:21:18]} {[%emt 00:01:14]} 45. h5 {[%clk
00:35:33]} {[%emt 00:05:11]} Rd5 {[%clk 00:19:20]} {[%emt 00:02:28]} 46. Ke4
{[%clk 00:33:12]} {[%emt 00:02:51]} Rf5 {[%clk 00:16:20]} {[%emt 00:03:30]} 47.
Ke3 {[%clk 00:33:27]} {[%emt 00:00:14]} Rf4 {[%clk 00:16:07]} {[%emt 00:00:44]}
48. Rb7 {[%clk 00:33:21]} {[%emt 00:00:36]} Rh4 {[%clk 00:15:58]} {[%emt
00:00:39]} 49. Rb5 {[%clk 00:32:34]} {[%emt 00:01:16]} g4 {[%clk 00:05:55]}
{[%emt 00:10:33]} 50. fxg4 {[%clk 00:27:11]} {[%emt 00:05:54]} Rxg4 {[%clk
00:06:22]} {[%emt 00:00:03]} 51. Kd3 {[%clk 00:27:22]} {[%emt 00:00:18]} Rg3+
{[%clk 00:04:57]} {[%emt 00:01:56]} 52. Kc4 {[%clk 00:23:38]} {[%emt 00:04:14]}
Rg5 {[%clk 00:03:59]} {[%emt 00:01:28]} 53. Kd4 {[%clk 00:20:58]} {[%emt
00:03:10]} Rf5 {[%clk 00:00:47]} {[%emt 00:03:42]} 54. Kc4 {[%clk 00:17:48]}
{[%emt 00:03:40]} Re5 {[%clk 00:01:01]} {[%emt 00:00:13]} 55. Kd4 {[%clk
00:17:23]} {[%emt 00:00:58]} Rg5 {[%clk 00:01:18]} {[%emt 00:00:13]} 56. Kc4
{[%clk 00:16:53]} {[%emt 00:01:00]} Rf5 {[%clk 00:00:45]} {[%emt 00:01:02]} 57.
Rxf5+ {[%clk 00:11:43]} {[%emt 00:05:41]} Kxf5 {[%clk 00:00:34]} {[%emt
00:00:41]} 58. b4 {[%clk 00:11:46]} {[%emt 00:00:27]} Ke5 {[%clk 00:01:01]}
{[%emt 00:00:02]} 59. b5 {[%clk 00:10:26]} {[%emt 00:01:49]} Kd6 {[%clk
00:01:20]} {[%emt 00:00:11]} 60. Kd4 {[%clk 00:08:41]} {[%emt 00:02:15]} f5
{[%clk 00:01:41]} {[%emt 00:00:09]} 61. Ke3 {[%clk 00:05:17]} {[%emt 00:03:55]}
e5 {[%clk 00:02:06]} {[%emt 00:00:05]} 62. Kf3 {[%clk 00:05:29]} {[%emt
00:00:17]} Kc5 {[%clk 00:02:32]} {[%emt 00:00:05]} 63. Ke3 {[%clk 00:05:40]}
{[%emt 00:00:18]} e4 {[%clk 00:02:38]} {[%emt 00:00:25]} 64. Kf4 {[%clk
00:05:26]} {[%emt 00:00:44]} Kd5 {[%clk 00:03:00]} {[%emt 00:00:07]} 65. Ke3
{[%clk 00:05:47]} {[%emt 00:00:09]} Ke5 {[%clk 00:03:29]} {[%emt 00:00:02]} 66.
Ke2 {[%clk 00:05:54]} {[%emt 00:00:23]} f4 {[%clk 00:02:48]} {[%emt 00:01:11]}
67. Kd2 {[%clk 00:05:55]} {[%emt 00:00:29]} Kd6 {[%clk 00:13:35]} {[%emt
00:04:42]} 68. Ke2 {[%clk 00:20:31]} {[%emt 00:00:54]} Kd5 {[%clk 00:14:00]}
{[%emt 00:00:05]} 69. Kd2 {[%clk 00:20:38]} {[%emt 00:00:24]} f3 {[%clk
00:12:35]} {[%emt 00:01:56]} 70. Ke3 {[%clk 00:19:02]} {[%emt 00:02:05]} Ke5
{[%clk 00:12:56]} {[%emt 00:00:09]} 71. Kf2 {[%clk 00:19:17]} {[%emt 00:00:14]}
Kf4 {[%clk 00:13:09]} {[%emt 00:00:17]} 72. b6 {[%clk 00:19:38]} {[%emt
00:00:09]} e3+ {[%clk 00:13:38]} {[%emt 00:00:01]} 73. Kf1 {[%clk 00:19:32]}
{[%emt 00:00:37]} Kg3 {[%clk 00:13:55]} {[%emt 00:00:13]} 74. b7 {[%clk
00:19:53]} {[%emt 00:00:09]} e2+ {[%clk 00:14:24]} {[%emt 00:00:01]} 75. Ke1
{[%clk 00:20:16]} {[%emt 00:00:07]} f2+ {[%clk 00:14:51]} {[%emt 00:00:03]} 76.
Kxe2 {[%clk 00:20:38]} {[%emt 00:00:08]} Kg2 {[%clk 00:15:19]} {[%emt
00:00:02]} 77. b8=Q {[%clk 00:20:59]} {[%emt 00:00:09]} f1=Q+ {[%clk 00:15:47]}
{[%emt 00:00:02]} 78. Kd2 {[%clk 00:17:57]} {[%emt 00:03:32]} Qf2+ {[%clk
00:15:59]} {[%emt 00:00:17]} 79. Kc1 {[%clk 00:16:44]} {[%emt 00:01:42]} Qe1+
{[%clk 00:13:13]} {[%emt 00:03:17]} 80. Kc2 {[%clk 00:12:33]} {[%emt 00:04:41]}
Qe2+ {[%clk 00:12:56]} {[%emt 00:00:47]} 81. Kc1 {[%clk 00:11:30]} {[%emt
00:01:33]} Qc4+ {[%clk 00:12:20]} {[%emt 00:01:07]} 82. Kb2 {[%clk 00:11:24]}
{[%emt 00:00:36]} Qd4+ {[%clk 00:10:27]} {[%emt 00:02:23]} 83. Kb3 {[%clk
00:11:02]} {[%emt 00:00:49]} Qd1+ {[%clk 00:05:42]} {[%emt 00:05:17]} 84. Kb2
{[%clk 00:11:06]} {[%emt 00:00:25]} Qxh5 {[%clk 00:04:52]} {[%emt 00:01:21]} 85.
Qb7 {[%clk 00:10:57]} {[%emt 00:00:38]} Kf1 {[%clk 00:04:54]} {[%emt 00:00:28]}
86. Qb5+ {[%clk 00:07:14]} {[%emt 00:04:15]} Qe2+ {[%clk 00:05:17]} {[%emt
00:00:07]} 87. Ka3 {[%clk 00:07:22]} {[%emt 00:00:22]} h5 {[%clk 00:05:31]}
{[%emt 00:00:16]} 88. Qxa5 {[%clk 00:06:35]} {[%emt 00:01:17]} Qe3+ {[%clk
00:05:23]} {[%emt 00:00:38]} 89. Kb2 {[%clk 00:05:45]} {[%emt 00:01:20]} Qd4+
{[%clk 00:03:16]} {[%emt 00:02:37]} 90. Kb3 {[%clk 00:05:28]} {[%emt 00:00:47]}
Qd3+ {[%clk 00:02:25]} {[%emt 00:01:21]} 91. Kb2 {[%clk 00:05:33]} {[%emt
00:00:25]} h4 {[%clk 00:02:17]} {[%emt 00:00:38]} 92. Qa8 {[%clk 00:04:47]}
{[%emt 00:01:16]} h3 {[%clk 00:01:34]} {[%emt 00:01:13]} 93. a5 {[%clk
00:04:20]} {[%emt 00:00:57]} Qd4+ {[%clk 00:01:34]} {[%emt 00:00:30]} 94. Kb3
{[%clk 00:03:36]} {[%emt 00:01:13]} h2 {[%clk 00:01:33]} {[%emt 00:00:32]} 95.
Qh1+ {[%clk 00:02:44]} {[%emt 00:01:22]} Qg1 {[%clk 00:02:01]} {[%emt
00:00:01]} 96. Qf3+ {[%clk 00:02:25]} {[%emt 00:00:49]} Qf2 {[%clk 00:02:30]}
{[%emt 00:00:02]} 97. Qh1+ {[%clk 00:01:44]} {[%emt 00:01:10]} Ke2 {[%clk
00:02:59]} {[%emt 00:00:02]} 98. Ka4 {[%clk 00:01:03]} {[%emt 00:01:12]} Qf4+
{[%clk 00:01:32]} {[%emt 00:01:56]} 99. Kb5 {[%clk 00:01:24]} {[%emt 00:00:09]}
Kf2 {[%clk 00:01:50]} {[%emt 00:00:12]} 100. a6 {[%clk 00:01:00]} {[%emt
00:00:54]} Qg5+ {[%clk 00:02:11]} {[%emt 00:00:08]} 101. Kb4 {[%clk 00:00:34]}
{[%emt 00:00:57]} Qg1 {[%clk 00:02:11]} {[%emt 00:00:29]} 102. Qd5 {[%clk
00:00:33]} {[%emt 00:00:32]} Qe1+ {[%clk 00:02:17]} {[%emt 00:00:24]} 103. Ka4
{[%clk 00:00:33]} {[%emt 00:00:30]} h1=Q {[%clk 00:02:09]} {[%emt 00:00:37]}
104. Qc5+ {[%clk 00:00:32]} {[%emt 00:00:31]} Qe3 {[%clk 00:02:31]} {[%emt
00:00:08]} 105. Qc2+ {[%clk 00:01:00]} {[%emt 00:00:03]} Kf3 {[%clk 00:02:45]}
{[%emt 00:00:15]} 0-1